[Event "FRA-ch Teams Top 16-B 2022"]
[Site "Chartres"]
[Date "2022.06.12"]
[Round "4.20"]
[White "Papadiamandis, Elliot"]
[Black "Solodovnichenko, Yuri"]
[Result "0-1"]
[ECO "B69"]
[WhiteElo "2373"]
[BlackElo "2499"]
[Annotator "TA"]
[PlyCount "106"]
[EventDate "2022.06.09"]
[EventType "team-tourn"]
[EventCountry "FRA"]
[SourceTitle "playchess.com"]
[Source "ChessBase"]
[SourceQuality "1"]
[TimeControl "40/5400+30:1800+30"]

{[%evp 22,106,48,54,50,34,43,39,38,17,55,71,78,64,92,96,109,67,62,60,73,38,35,28,100,62,70,0,0,0,0,0,0,0,0,0,0,0,0,-8,-8,-19,-21,-39,-22,-20,-28,-22,-29,-25,-14,-27,0,0,0,0,0,-75,-54,-75,-66,-74,-75,-240,-233,-220,-138,-129,-115,-138,-126,-848,-842,-816,-809,-765,-697,-659,-509,-500,-485,-464,-434,-477,-453,-453,-437]} 1. e4 {[%emt 0:00:05]} c5 {[%emt 0:01:29]} 2. Nf3 {[%emt 0:00:25]} Nc6 {[%emt 0:00:37]} 3. d4 {[%emt 0:01:14]} cxd4 {[%emt 0:00:07]} 4. Nxd4 {[%emt 0:00:06]} Nf6 {[%emt 0:00:06]} 5. Nc3 {[%emt 0:00:10]} d6 {[%emt 0:00:12]} 6. Bg5 {[%emt 0:00:52]} e6 {[%emt 0:00:15]} 7. Qd2 {[%emt 0:00:12]} a6 {[%emt 0:00:08]} 8. O-O-O {[%emt 0:00:23]} Bd7 {[%emt 0:00:07]} 9. f4 {[%emt 0:00:45]} Be7 {[%emt 0:00:24]} 10. Nf3 {[%emt 0:01:17]} b5 {[%emt 0:00:19]} 11. Bxf6 {[%emt 0:01:12]} gxf6 {[%emt 0:00:57]} 12. f5 {[%emt 0:02:14]} Qa5 {[%emt 0:00:15] And now ...b4 would win. B69: Sicilian: Richter-Rauzer: 7...a6 8 0-0-0 Bd7 9 f4 Be7 10 Nf3 b5 11 Bxf6.} 13. Kb1 $1 {[%emt 0:02:48]} h5 $1 {[%emt 0:00:08]} 14. Bd3 {[%emt 0:06:03]} O-O-O {[%emt 0:04:20] White is slightly better.} 15. Rhf1 {[%emt 0:11:14]} Kb8 {[%emt 0:03:24]} 16. Qf2 {[%emt 0:01:24]} Rc8 {[%emt 0:04:43] [#]} 17. Ne2 $146 {[%emt 0:04:31]} ({Predecessor:} 17. Nd2 Kb7 18. Nb3 Qb6 19. Qd2 Ne5 20. Ne2 Bd8 21. Nf4 Nc4 22. Bxc4 bxc4 23. Qxd6 {1-0 (45) Dominguez Perez,L (2756)-Bacrot,E (2635) Chess.com INT 2022}) 17... Nb4 {[%emt 0:08:20]} 18. a3 {[%emt 0:02:40]} Nc6 {[%emt 0:07:19]} 19. Nfd4 {[%emt 0:06:25]} Nxd4 {[%emt 0:01:51]} 20. Qxd4 {[%emt 0:02:04]} h4 {[%emt 0:10:06]} 21. g4 {[%emt 0:07:03]} hxg3 {[%emt 0:03:20]} 22. hxg3 {[%emt 0:00:21]} Kb7 {[%emt 0:02:23]} (22... Bc6 $11 {remains equal.}) 23. Rh1 {[%emt 0:11:47]} Qb6 {[%emt 0:00:43]} 24. Qxb6+ {[%emt 0:01:18]} ({White should try} 24. Qb4 $14) 24... Kxb6 $11 {[%emt 0:00:05]} 25. Nf4 {[%emt 0:00:06]} Rcg8 {[%emt 0:04:01]} 26. fxe6 {[%emt 0:00:52]} fxe6 {[%emt 0:09:11][%cal Bf7e6,Be6e5,Be5e4][%mdl 32]} 27. Rxh8 {[%emt 0:00:34]} Rxh8 {[%emt 0:00:01]} 28. Ng6 {[%emt 0:00:55][%csl LRe7,LRh8]} Re8 {[%emt 0:01:54]} 29. Rh1 {[%emt 0:09:42] Threatens to win with Rh7.} Bd8 {[%emt 0:00:10]} 30. Rh7 {[%emt 0:00:14]} Bc6 {[%emt 0:01:27]} 31. Rg7 {[%emt 0:06:39]} e5 {[%emt 0:02:30]} 32. Nh4 {[%emt 0:01:21]} d5 {[%emt 0:00:07]} 33. exd5 {[%emt 0:02:53]} Bxd5 {[%emt 0:00:05]} 34. Nf5 {[%emt 0:00:08]} e4 {[%emt 0:00:25]} 35. Be2 {[%emt 0:00:42]} Bc7 {[%emt 0:10:21]} 36. Ne3 {[%emt 0:02:10]} Be6 {[%emt 0:03:27]} (36... Rd8 $5 {[%cal Rd5c6]}) 37. Bh5 {[%emt 0:02:49]} Rh8 {[%emt 0:03:11]} 38. Re7 {[%emt 0:00:43]} Bc8 {[%emt 0:07:15]} 39. g4 {[%emt 0:03:45]} (39. Bg4 $1 $11 {keeps the balance.} Bb7 40. c4) 39... Be5 {[%emt 0:06:15]} (39... Bd6 $5 {[%cal Rd6e7]} 40. Rf7 Be5 $17) 40. c3 {[%emt 0:07:43]} Kc5 {[%emt 0:02:03]} 41. Kc2 {[%emt 0:03:33]} Kd6 {[%emt 0:00:27]} 42. Rg7 {[%emt 0:04:48] [#]} (42. Re8 $17 {was forced.} Rxe8 43. Bxe8) 42... Bf4 $1 $19 {[%emt 0:04:26]} 43. Kd2 {[%emt 0:05:31]} f5 {[%emt 0:05:57] White must now prevent ...Be6.} 44. Ke2 {[%emt 0:02:48]} fxg4 {[%emt 0:01:46]} 45. Rg6+ {[%emt 0:02:57]} Ke5 {[%emt 0:00:29]} 46. Nxg4+ $2 {[%emt 0:00:22][%mdl 8192] [#]} (46. Bxg4 $17 Bxg4+ 47. Rxg4) 46... Kf5 $1 {[%emt 0:05:05] Black is clearly winning.} 47. Nf6 {[%emt 0:02:46]} Be6 {[%emt 0:06:10]} ({Not} 47... Be5 48. Nd5 $11) 48. Rg4 {[%emt 0:05:45]} Bc4+ {[%emt 0:03:34]} 49. Kf2 {[%emt 0:00:48]} Be5 {[%emt 0:02:52] A strong pair of Bishops.} 50. Bg6+ {[%emt 0:05:03]} Kxf6 {[%emt 0:00:06]} 51. Bxe4 {[%emt 0:00:03]} Rh2+ {[%emt 0:00:29]} 52. Ke3 {[%emt 0:00:09]} Re2+ {[%emt 0:01:30]} 53. Kf3 {[%emt 0:00:01]} Rxb2 {[%emt 0:00:11] Weighted Error Value: White=0.35/Black=0.15 (very precise)} 0-1

[Event "FRA-ch Teams Top 16-B 2022"]
[Site "Chartres"]
[Date "2022.06.12"]
[Round "4.21"]
[White "Nezar, Mustapha"]
[Black "Terrieux, Kevin"]
[Result "1/2-1/2"]
[ECO "A08"]
[WhiteElo "2357"]
[BlackElo "2448"]
[Annotator "TA"]
[PlyCount "55"]
[EventDate "2022.06.09"]
[EventType "team-tourn"]
[EventCountry "FRA"]
[SourceTitle "playchess.com"]
[Source "ChessBase"]
[SourceQuality "1"]
[TimeControl "40/5400+30:1800+30"]

{[%evp 23,55,22,32,37,51,45,58,47,64,75,57,65,90,71,95,65,61,54,49,49,47,49,55,43,37,0,0,8,36,-14,-12,-29,-17,-14]} 1. e4 {[%emt 0:02:46]} e6 {[%emt 0:00:10]} 2. d3 {[%emt 0:02:43]} d5 {[%emt 0:00:24]} 3. Nd2 {[%emt 0:00:07]} c5 {[%emt 0:01:16]} 4. Ngf3 {[%emt 0:00:44]} Nc6 {[%emt 0:00:09]} 5. g3 {[%emt 0:01:03]} g6 {[%emt 0:00:16]} 6. Bg2 {[%emt 0:02:03]} Bg7 {[%emt 0:00:07]} 7. O-O {[%emt 0:03:08]} Nge7 {[%emt 0:00:25]} 8. Re1 {[%emt 0:05:34]} O-O {[%emt 0:01:45]} 9. c3 {[%emt 0:12:36]} b6 {[%emt 0:16:09]} 10. e5 {[%emt 0:10:46]} h6 {[%emt 0:03:02]} 11. Nf1 {[%emt 0:05:55]} Qc7 {[%emt 0:27:30]} 12. Qe2 {[%emt 0:18:59]} Ba6 {[%emt 0:01:13]} 13. h4 {[%emt 0:02:25] A08: King's Indian Attack.} Rad8 {[%emt 0:25:33]} 14. N1h2 {[%emt 0:04:38]} Kh7 {[%emt 0:00:40]} 15. Ng4 {[%emt 0:01:38] White is slightly better.} Ng8 {[%emt 0:00:31] Against Nf6+} 16. Bf4 {[%emt 0:01:07]} Qe7 {[%emt 0:01:54] Inhibits Nf6+.} 17. Qd2 {[%emt 0:02:12] [#]} Bc8 $146 {[%emt 0:01:10]} ({Predecessor:} 17... Bb7 18. Bg5 hxg5 19. hxg5 Nxe5 20. Nfxe5 f6 21. gxf6 Bxf6 22. Nxf6+ Qxf6 23. Nf3 d4 24. Ng5+ {1-0 (24) Jostov,K (1195)-Zens,R (1685) LSS email 2014}) 18. d4 {[%emt 0:10:29] White is more active.} Ba6 {[%emt 0:02:10]} 19. h5 {[%emt 0:03:44]} cxd4 {[%emt 0:03:29]} 20. Nxd4 {[%emt 0:02:27]} (20. cxd4 {with more complications.} Rc8 21. a3 gxh5 22. Ne3) 20... Nxd4 {[%emt 0:00:53]} 21. hxg6+ {[%emt 0:00:33]} ({Don't play} 21. Qxd4 gxh5 22. Ne3 h4 $11) 21... fxg6 {[%emt 0:00:09][%cal Bf7g6,Bg6g5,Bg5g4][%mdl 32] [#] Strongly threatening ...Nf5.} 22. cxd4 {[%emt 0:00:42]} Rc8 {[%emt 0:03:19]} 23. Rac1 {[%emt 0:00:19]} Qf7 {[%emt 0:04:36]} 24. Bh3 {[%emt 0:00:59]} g5 {[%emt 0:00:18]} 25. Be3 {[%emt 0:00:08]} h5 {[%emt 0:00:17]} 26. Nh2 {[%emt 0:00:13]} (26. Rxc8 $14 Rxc8 27. Nf6+ Bxf6 28. exf6) 26... g4 $11 {[%emt 0:00:20]} 27. Bg2 {[%emt 0:02:38]} Nh6 {[%emt 0:02:23]} 28. f3 {[%emt 0:01:08] Weighted Error Value: White=0.12 (very precise) /Black=0.08 (flawless)} 1/2-1/2

[Event "FRA-ch Teams Top 16-B 2022"]
[Site "Chartres"]
[Date "2022.06.12"]
[Round "4.22"]
[White "Burri, Quentin"]
[Black "Savina, Anastasia"]
[Result "1-0"]
[ECO "C84"]
[WhiteElo "2401"]
[BlackElo "2348"]
[Annotator "TA"]
[PlyCount "111"]
[EventDate "2022.06.09"]
[EventType "team-tourn"]
[EventCountry "FRA"]
[SourceTitle "playchess.com"]
[Source "ChessBase"]
[SourceQuality "1"]
[TimeControl "40/5400+30:1800+30"]

{[%evp 15,111,33,30,27,27,10,15,7,14,12,8,-11,-4,-35,-30,-47,-13,-25,-7,-23,-6,-9,-11,0,0,0,3,0,27,25,29,0,18,18,21,22,19,23,20,16,17,20,37,0,0,0,0,0,0,11,131,143,145,145,149,152,136,137,128,137,125,121,171,168,163,165,202,195,188,186,184,184,177,177,184,156,152,152,180,179,708,680,453,370,1521,1269,5619,5619,4844,4683,29959,29958,8210,10375,5811,4634,4614,4610]} 1. e4 {[%emt 0:00:04]} e5 {[%emt 0:00:50]} 2. Nf3 {[%emt 0:00:08]} Nc6 {[%emt 0:00:04]} 3. Bb5 {[%emt 0:00:05]} a6 {[%emt 0:00:18]} 4. Ba4 {[%emt 0:00:07]} Nf6 {[%emt 0:00:04]} 5. O-O {[%emt 0:00:14]} Be7 {[%emt 0:00:36]} 6. d3 {[%emt 0:00:17]} d6 {[%emt 0:00:49]} 7. c3 {[%emt 0:00:15]} O-O {[%emt 0:00:30]} 8. Re1 {[%emt 0:00:22]} Re8 {[%emt 0:03:22]} 9. Nbd2 {[%emt 0:00:59] C84: Closed Ruy Lopez: Unusual White 6th moves.} Bf8 {[%emt 0:01:54]} 10. d4 {[%emt 0:01:48]} exd4 {[%emt 0:05:44]} 11. cxd4 {[%emt 0:00:17] The position is equal.} b5 $1 {[%emt 0:00:50]} 12. Bc2 {[%emt 0:00:24]} Bg4 {[%emt 0:05:18]} 13. Nf1 {[%emt 0:02:02]} g6 {[%emt 0:13:15] [#]} 14. h3 $146 {[%emt 0:03:51]} ({Predecessor:} 14. Ng3 Bg7 15. Be3 Nd7 16. Rc1 Bxf3 17. gxf3 Qf6 18. Bb3 Nxd4 19. Bxd4 Qxd4 20. Rxc7 {1-0 (40) Nepomniachtchi,I (2784)-Carlsen,M (2862) chess24.com INT 2020}) 14... Bxf3 {[%emt 0:01:48]} 15. gxf3 {[%emt 0:00:06]} Nh5 {[%emt 0:01:46]} 16. d5 {[%emt 0:14:06]} Ne5 {[%emt 0:12:28]} 17. f4 {[%emt 0:03:53]} Nc4 {[%emt 0:02:25]} 18. Ng3 {[%emt 0:08:25]} Nxg3 {[%emt 0:06:20]} 19. fxg3 {[%emt 0:00:08]} Bg7 {[%emt 0:00:09]} 20. Rb1 {[%emt 0:01:40]} c5 {[%emt 0:01:38][%cal Bc7c5,Bc5d4][%mdl 32]} 21. b3 {[%emt 0:09:55]} Bd4+ {[%emt 0:01:54]} 22. Kg2 {[%emt 0:01:32]} Nb6 {[%emt 0:00:11]} 23. Be3 {[%emt 0:03:44]} Rc8 {[%emt 0:04:31][%cal Ob6d5]} 24. Bxd4 {[%emt 0:10:45]} cxd4 {[%emt 0:00:08]} 25. Re2 {[%emt 0:00:10]} Qf6 {[%emt 0:04:05]} 26. Qd2 {[%emt 0:03:01]} Rc3 {[%emt 0:04:05]} 27. Rd1 {[%emt 0:01:14]} Rec8 {[%emt 0:05:39]} 28. Bb1 {[%emt 0:00:38]} Nd7 {[%emt 0:00:37][%cal Og6g5]} 29. Qxd4 {[%emt 0:21:26]} (29. Rf1 $5 {[%cal Re4e5]}) 29... Qxd4 {[%emt 0:01:23]} 30. Rxd4 {[%emt 0:00:04]} Rc1 {[%emt 0:00:14]} 31. Bd3 {[%emt 0:00:08]} Rd1 {[%emt 0:18:48]} 32. e5 {[%emt 0:02:04][%cal Od3b5]} dxe5 {[%emt 0:03:10]} (32... Rc3 $11 {keeps the balance.} 33. e6 Nf6) 33. fxe5 $16 {[%emt 0:00:22]} Rc3 {[%emt 0:00:34]} 34. e6 {[%emt 0:01:07]} fxe6 {[%emt 0:00:13]} 35. dxe6 {[%emt 0:00:38]} Rcxd3 {[%emt 0:01:20]} 36. Rxd3 {[%emt 0:00:38]} Rxd3 {[%emt 0:00:08][%mdl 4096] Endgame [#] KRN-KR} 37. e7 $1 {[%emt 0:02:48]} ({But not} 37. exd7 $6 Kf7 $11) 37... Nf6 {[%emt 0:00:04] [#] Threatens to win with ...Kf7.} 38. Rf2 $1 {[%emt 0:00:09]} Re3 {[%emt 0:01:47]} 39. Rxf6 $18 {[%emt 0:00:21] Hoping for Rf8+.} Rxe7 {[%emt 0:00:02]} 40. Rxa6 {[%emt 0:00:06] KR-KR} Re3 {[%emt 0:00:21]} 41. Kf2 {[%emt 0:31:34]} Rc3 {[%emt 0:30:19]} 42. Rb6 {[%emt 0:00:27]} Rc2+ {[%emt 0:01:03]} 43. Kf3 {[%emt 0:01:25]} Rxa2 {[%emt 0:00:19]} 44. Rxb5 {[%emt 0:00:04]} Ra7 {[%emt 0:00:00]} 45. Re5 {[%emt 0:00:00]} Kf7 {[%emt 0:00:00]} 46. Re3 {[%emt 0:00:00]} Ra1 {[%emt 0:00:00]} 47. Ke2 {[%emt 0:00:00] aiming for Kd3.} Rh1 $2 {[%emt 0:00:00]} (47... Ra8 48. Kd3 Rb8) 48. h4 {[%emt 0:00:00]} Kf6 {[%emt 0:00:00]} 49. Kd3 {[%emt 0:00:00] Black must now prevent b4.} g5 $2 {[%emt 0:00:00]} (49... Rb1 50. Kc4 Rc1+ 51. Kb5 Rb1) 50. hxg5+ {[%emt 0:00:00]} Kxg5 {[%emt 0:00:00]} 51. b4 {[%emt 0:00:00][%cal Bb3b4,Bb4b5][%mdl 32]} Kg4 {[%emt 0:00:00]} 52. Kd4 {[%emt 0:00:00]} h5 {[%emt 0:02:17]} 53. b5 {[%emt 0:00:00]} Rb1 {[%emt 0:00:58]} 54. Kc5 {[%emt 0:00:00] White is clearly winning.} Rc1+ {[%emt 0:00:52]} 55. Kb4 {[%emt 0:00:00]} Rb1+ {[%emt 0:02:17]} 56. Rb3 {[%emt 0:00:00] Weighted Error Value: White=0.07 (flawless) /Black=0.35} 1-0

[Event "FRA-ch Teams Top 16-B 2022"]
[Site "Chartres"]
[Date "2022.06.12"]
[Round "4.23"]
[White "Adrian, Claude"]
[Black "Riff, Jean-Noel"]
[Result "1-0"]
[ECO "E05"]
[WhiteElo "2175"]
[BlackElo "2444"]
[Annotator "TA"]
[PlyCount "63"]
[EventDate "2022.06.09"]
[EventType "team-tourn"]
[EventCountry "FRA"]
[SourceTitle "playchess.com"]
[Source "ChessBase"]
[SourceQuality "1"]
[TimeControl "40/5400+30:1800+30"]

{[%evp 19,63,0,0,-11,-12,-1,-3,-14,12,0,0,0,0,0,0,0,0,0,0,-91,-84,-77,-91,-81,-88,-85,-113,-110,-90,-110,-121,-112,-83,-83,-75,-74,-63,-51,-60,-71,0,0,401,366,9247,1602]} 1. Nf3 {[%emt 0:02:46] Atalik,S} Nf6 {[%emt 0:00:07]} 2. c4 {[%emt 0:00:09]} e6 {[%emt 0:00:03]} 3. g3 {[%emt 0:00:06]} d5 {[%emt 0:00:08]} 4. d4 {[%emt 0:00:05]} Be7 {[%emt 0:01:30]} 5. Bg2 {[%emt 0:00:42]} O-O {[%emt 0:00:04]} 6. O-O {[%emt 0:00:19]} dxc4 {[%emt 0:00:03]} 7. Na3 {[%emt 0:00:13]} Bxa3 {[%emt 0:00:33]} 8. bxa3 {[%emt 0:00:03]} Bd7 {[%emt 0:00:09]} 9. Ne5 {[%emt 0:00:32] 9.a4 injects fresh life into this line.} Bc6 {[%emt 0:00:42]} 10. Nxc6 {[%emt 0:00:28]} Nxc6 {[%emt 0:00:05]} ({Don't take} 10... bxc6 11. a4 $16) 11. Rb1 {[%emt 0:00:08] E05: Open Catalan: 5 Nf3 Be7.} Rb8 {[%emt 0:00:10]} 12. e3 {[%emt 0:00:21]} Nd5 {[%emt 0:05:13]} 13. Bd2 {[%emt 0:00:36] Against Nc3. The position is equal.} Qd6 {[%emt 0:07:42]} 14. Qc1 {[%emt 0:20:16]} b5 {[%emt 0:11:59]} 15. a4 $1 {[%emt 0:07:11]} a6 $36 {[%emt 0:00:27][%cal Ba7a6,Ba6b5,Bb5a4][%mdl 2080] Black has good play.} ({Much less strong is} 15... bxa4 16. Qxc4 a3 17. Rfc1 $16) 16. axb5 {[%emt 0:12:16]} axb5 {[%emt 0:00:30]} 17. a4 {[%emt 0:00:30]} c3 {[%emt 0:14:40]} 18. Bxc3 {[%emt 0:02:42]} bxa4 {[%emt 0:00:30] [#] Strongly threatening ...Rxb1.} 19. Ba1 $146 {[%emt 0:00:30]} (19. Ra1 $11 {remains equal.}) ({Predecessor:} 19. Ra1 Rb3 20. Bb2 Rfb8 21. Ba3 Ncb4 22. Qc4 Rc3 23. Qe2 Qb6 24. Bxb4 Qxb4 25. Bxd5 exd5 {½-½ (42) Atalik,S (2525)-Liang,J (2425) Beijing 1996 CBM 055 [Atalik,S]}) 19... Na5 {[%emt 0:11:19]} 20. e4 {[%emt 0:50:37]} Rxb1 {[%emt 0:03:43]} 21. Qxb1 {[%emt 0:00:00]} Nb6 {[%emt 0:00:17][%cal Bd5b6,Bb6c4,Bc4d2][%mdl 32]} 22. Rd1 {[%emt 0:00:00]} Nb3 {[%emt 0:00:56]} 23. Bc3 {[%emt 0:00:00]} Rd8 {[%emt 0:09:45]} 24. Bf3 {[%emt 0:00:00]} Qc6 {[%emt 0:01:41]} 25. Rd3 {[%emt 0:00:00]} Nc4 {[%emt 0:03:02]} 26. d5 {[%emt 0:00:00]} exd5 {[%emt 0:03:34]} 27. Rxd5 {[%emt 0:00:00]} Rxd5 {[%emt 0:03:47]} 28. exd5 {[%emt 0:00:00]} Qe8 {[%emt 0:00:06]} 29. Qf5 {[%emt 0:00:00] [#] Qg4 is the strong threat.} Ncd2 {[%emt 0:00:48]} (29... Nbd2 $17 {( -> ...Qe1+)} 30. Qd3 Ne5 31. Bxe5 Nxf3+ 32. Qxf3 Qxe5) 30. Be2 $1 $11 {[%emt 0:00:00] aiming for Bd3. A strong pair of Bishops.} f6 $2 {[%emt 0:05:17][%mdl 8192]} (30... Ne4 $11 31. Bb5 g6 32. Bxe8 (32. Qe5 $2 Qxe5 33. Bxe5 a3 $19) 32... gxf5) 31. Bd3 $18 {[%emt 0:00:00]} Qe1+ $2 {[%emt 0:03:22]} (31... Kf7 32. Qxh7 Nf3+ 33. Kg2 Ne1+ 34. Bxe1 Qxe1 35. Bg6+ Ke7 36. Qxg7+ Kd6 37. Qxf6+ Kc5 38. Qf8+ Kxd5 39. Qd8+ Kc6 40. Be8+ Kc5 41. Qxc7+ Kb4 42. Qd6+ Kc3) 32. Kg2 {[%emt 0:00:00] Weighted Error Value: White=0.10 (very precise) /Black=0.47} 1-0

[Event "FRA-ch Teams Top 16-B 2022"]
[Site "Chartres"]
[Date "2022.06.12"]
[Round "4.24"]
[White "Navrotescu, Andreea"]
[Black "Steil-Antoni, Fiona"]
[Result "1-0"]
[ECO "D31"]
[WhiteElo "2318"]
[BlackElo "2198"]
[Annotator "TA"]
[PlyCount "71"]
[EventDate "2022.06.09"]
[EventType "team-tourn"]
[EventCountry "FRA"]
[SourceTitle "playchess.com"]
[Source "ChessBase"]
[SourceQuality "1"]
[TimeControl "40/5400+30:1800+30"]

{[%evp 28,71,-7,-13,-8,0,5,-25,-55,-47,-60,-202,-210,-329,0,0,0,0,0,-7,29,62,168,171,155,171,271,257,269,214,620,606,747,699,1132,1126,1070,1064,2066,1999,2125,2397,29978,5252,4878,1209]} 1. c4 {[%emt 0:00:03]} e6 {[%emt 0:00:45]} 2. Nc3 {[%emt 0:00:27]} d5 {[%emt 0:00:12]} 3. d4 {[%emt 0:00:06]} c6 {[%emt 0:00:16]} 4. Nf3 {[%emt 0:01:10]} dxc4 {[%emt 0:00:24]} 5. e3 {[%emt 0:00:44]} b5 {[%emt 0:00:38]} 6. a4 {[%emt 0:00:07]} Bb4 {[%emt 0:00:57]} 7. Bd2 {[%emt 0:00:42]} a5 {[%emt 0:01:08]} 8. axb5 {[%emt 0:00:36]} Bxc3 {[%emt 0:01:03]} 9. Bxc3 {[%emt 0:00:08]} cxb5 {[%emt 0:00:17]} 10. b3 {[%emt 0:00:12]} Bb7 {[%emt 0:02:29]} 11. bxc4 {[%emt 0:00:21]} b4 {[%emt 0:00:55]} 12. Bb2 {[%emt 0:00:12]} Nf6 {[%emt 0:01:47]} 13. Bd3 {[%emt 0:00:40]} O-O {[%emt 0:00:36] now scores much better than the old 13...Nbd7.} 14. Qc2 {[%emt 0:04:50]} Nbd7 {[%emt 0:02:47]} 15. O-O {[%emt 0:04:55]} h6 {[%emt 0:02:17] D31: Queen's Gambit Declined: Semi-Slav without ...Nf6 (+ Marshall Gambit and Noteboom) and Exchange Variation lines without ...Nf6.} 16. e4 {[%emt 0:02:22]} Qe7 {[%emt 0:07:32] [#]} 17. d5 $146 {[%emt 0:10:15][%cal Od5d6]} ({Predecessor:} 17. e5 Ne8 18. Nd2 Nc7 19. Ne4 Nb6 20. Nd6 Bc6 21. f4 Ne8 22. f5 Nd7 23. f6 gxf6 24. Nxe8 Rfxe8 25. exf6 {1-0 (31) Kouvatsos,F (2000)-Papathanasiou,A (1805) Greece 2001}) 17... Nc5 {[%emt 0:08:49] Black has an edge.} 18. Rfd1 {[%emt 0:12:25]} a4 {[%emt 0:05:28]} 19. e5 {[%emt 0:13:12]} (19. Bd4 $15 b3 20. Qb1) 19... Nfd7 $1 $19 {[%emt 1:01:40]} 20. Bd4 {[%emt 0:17:06]} (20. d6 $142 Qd8 21. Nd2) 20... Nb3 $2 {[%emt 0:00:00]} (20... b3 $19 21. Qc3 (21. Bh7+ $2 Kh8 $19) 21... exd5) 21. d6 $1 $11 {[%emt 0:03:13]} Qd8 {[%emt 0:00:00] White must now prevent ...Bxf3.} 22. Rxa4 $1 {[%emt 0:00:09]} Rxa4 {[%emt 0:00:00]} 23. Qxb3 {[%emt 0:00:41]} Bxf3 {[%emt 0:00:00]} 24. gxf3 {[%emt 0:07:44]} ({But not} 24. Qxa4 Qg5 $1 25. Bf1 Nxe5 $17) 24... Qg5+ {[%emt 0:00:00] [#]} ({Black should play} 24... Ra5 $14) 25. Kf1 $1 $18 {[%emt 0:00:02]} Raa8 {[%emt 0:00:00]} 26. Be4 {[%emt 0:01:58]} Rab8 {[%emt 0:00:00]} (26... Rac8 $142) 27. c5 {[%emt 0:00:19][%cal Bc4c5,Bc5c6,Bc6c7][%mdl 32]} Nxe5 {[%emt 0:00:00]} 28. c6 {[%emt 0:01:11] The board is on fire.} Ng6 $2 {[%emt 0:00:00]} (28... Nxc6 29. Bxc6 Qa5) 29. c7 {[%emt 0:01:11]} Rbc8 {[%emt 0:00:00]} 30. Qxb4 {[%emt 0:01:58]} Nf4 {[%emt 0:00:00]} 31. Be3 {[%emt 0:00:33] aiming for Bxf4. Active counter play! A strong pair of Bishops.} Qg2+ {[%emt 0:00:00]} 32. Ke1 {[%emt 0:00:02]} Nd5 {[%emt 0:00:00]} 33. Bxd5 {[%emt 0:00:41] Hoping for d7.} exd5 {[%emt 0:00:00]} 34. d7 {[%emt 0:00:20] Strongly threatening Qxf8+.} Qh3 {[%emt 0:00:00]} 35. Qxf8+ {[%emt 0:00:37]} (35. Rxd5 $142 Kh7 36. Qe4+ g6 37. d8=Q Ra8 38. Qf4 Ra1+ 39. Rd1 g5 {[#]} 40. Qxf8 $1) 35... Rxf8 {[%emt 0:00:00]} 36. d8=Q {[%emt 0:00:08] Weighted Error Value: White=0.24 (precise) /Black=1.13} 1-0

[Event "FRA-ch Teams Top 16-B 2022"]
[Site "Chartres"]
[Date "2022.06.12"]
[Round "4.25"]
[White "Le Hetet, Nicolas"]
[Black "Neiksans, Arturs"]
[Result "0-1"]
[ECO "B48"]
[WhiteElo "2372"]
[BlackElo "2579"]
[Annotator "TA"]
[PlyCount "64"]
[EventDate "2022.06.09"]
[EventType "team-tourn"]
[EventCountry "FRA"]
[SourceTitle "playchess.com"]
[Source "ChessBase"]
[SourceQuality "1"]
[TimeControl "40/5400+30:1800+30"]

{[%evp 11,64,19,17,22,21,16,46,15,40,12,48,0,51,26,20,0,0,0,36,52,69,68,57,51,190,109,193,73,77,0,0,-43,-59,-265,-229,-241,-218,-234,-244,-235,-247,-231,-173,-432,-427,-490,-483,-748,-737,-29985,-1156,-1058,-1060,-985,-871]} 1. e4 {[%emt 0:00:04]} c5 {[%emt 0:00:06]} 2. Nf3 {[%emt 0:00:10]} e6 {[%emt 0:00:06]} 3. d4 {[%emt 0:00:07]} cxd4 {[%emt 0:00:06]} 4. Nxd4 {[%emt 0:00:04]} Nc6 {[%emt 0:00:45]} 5. Nc3 {[%emt 0:02:02]} Qc7 {[%emt 0:00:35]} 6. Be3 {[%emt 0:01:40]} a6 {[%emt 0:00:45]} 7. Qf3 {[%emt 0:00:39] 7.g4 is becoming the main line. B48: Sicilian: Taimanov: 5 Nc3 Qc7 6 Be3 a6 without Be2.} Ne5 {[%emt 0:01:49]} 8. Qg3 {[%emt 0:05:45]} h5 {[%emt 0:00:17]} 9. h4 {[%emt 0:04:59] White is slightly better.} d6 {[%emt 0:10:23]} 10. O-O-O {[%emt 0:07:35]} Bd7 {[%emt 0:01:05]} 11. Kb1 {[%emt 0:12:00]} (11. Bg5 $14) 11... Nf6 {[%emt 0:00:49]} (11... b5 $11) 12. Be2 $14 {[%emt 0:03:30]} b5 {[%emt 0:01:27]} 13. a3 {[%emt 0:05:21]} Rb8 {[%emt 0:00:29] [#]} 14. f4 $146 {[%emt 0:04:54]} ({Predecessor:} 14. Bg5 Nc4 15. f4 b4 16. axb4 Rxb4 17. Bxc4 Rxc4 18. Bxf6 gxf6 19. Rd3 Qb6 20. Rhd1 {1-0 (30) Vetoshko,V (2525)-Suvorov,A (2391) Castelldefels 2021}) 14... Nc4 {[%emt 0:00:55][%cal Oc4b2]} 15. Bc1 {[%emt 0:16:20]} a5 {[%emt 0:27:00] And now ...b4 would win.} 16. e5 {[%emt 0:06:26]} dxe5 {[%emt 0:02:47]} 17. fxe5 {[%emt 0:00:08][%cal Oa3a4]} Ng4 {[%emt 0:00:21]} (17... b4 $1 $14 18. Bxc4 bxc3) 18. Ne4 $18 {[%emt 0:06:03]} ({And not} 18. Bxg4 hxg4 19. Ne4 b4 $14) 18... b4 {[%emt 0:02:06] [#]} (18... Rc8 $16) 19. Bxc4 {[%emt 0:07:58]} (19. a4 $1 $18 {and the rest is easy.}) 19... Qxc4 $16 {[%emt 0:00:11] [#]} 20. b3 {[%emt 0:00:41]} (20. a4 $1 $16) 20... bxa3 $11 {[%emt 0:01:01]} 21. Ka2 {[%emt 0:01:37]} (21. Rhf1 $5 {[%cal Rg3f4]}) 21... Qc7 {[%emt 0:01:16]} 22. Nd6+ $2 {[%emt 0:04:15]} (22. Rhf1 $1 $15) 22... Bxd6 $19 {[%emt 0:00:06]} 23. exd6 {[%emt 0:00:04]} Qb7 {[%emt 0:02:07]} 24. Bxa3 {[%emt 0:05:38]} O-O {[%emt 0:00:21]} 25. Rhf1 {[%emt 0:01:04]} Rfc8 {[%emt 0:02:38] Threatens to win with ...e5.} 26. Rd2 {[%emt 0:02:26]} Qa6 {[%emt 0:12:12]} ({Weaker is} 26... e5 27. Nf5 Bxf5 28. Rxf5 $17) 27. Rf3 {[%emt 0:01:05]} (27. Qf3 f6 28. Qe2 Qxe2 29. Rxe2) 27... a4 {[%emt 0:00:34] aiming for ...e5.} 28. Rc3 {[%emt 0:01:15]} e5 {[%emt 0:03:29][%cal Be6e5,Be5d4][%mdl 32]} 29. Rc7 {[%emt 0:00:13]} (29. Qd3 $142 Qxd3 30. Rxc8+ Rxc8 31. Rxd3) 29... exd4 {[%emt 0:05:28]} 30. Rxd7 {[%emt 0:00:17] [#]} Rxc2+ $3 {[%emt 0:00:11][%mdl 512]} 31. Rxc2 {[%emt 0:00:25]} axb3+ {[%emt 0:00:04]} 32. Qxb3 {[%emt 0:01:13]} Rxb3 {[%emt 0:00:06] Weighted Error Value: White=0.75/Black=0.44} 0-1